[Event "January 9 Early 2024"]
[Site "https://www.chess.com"]
[Date "2024.01.11"]
[Round "3"]
[White "Flynn, Jacob"]
[Black "Shimanov, Aleksandr"]
[Result "0-1"]
[Board "19"]
[TimeControl "180+1"]
[WhiteFideId "2509393"]
[BlackFideId "4198603"]
[WhiteElo "2526"]
[BlackElo "2994"]
[WhiteTeam "IRL"]
[BlackTeam "RUS"]
[WhiteClock "0:00:42"]
[BlackClock "0:02:50"]

1. d4 {[%clk 0:03:00]}  d5 {[%clk 0:02:57]} 2. c4 {[%clk 0:03:01]}  e5 {[%clk 0:02:58]} 3. dxe5 {[%clk 0:03:01]}  Ne7 {[%clk 0:02:58]} 4. Nf3 {[%clk 0:02:58]}  Nbc6 {[%clk 0:02:58]} 5. cxd5 {[%clk 0:02:56]}  Qxd5 {[%clk 0:02:59]} 6. Nc3 {[%clk 0:02:54]}  Qxd1+ {[%clk 0:02:58]} 7. Nxd1 {[%clk 0:02:55]}  Bg4 {[%clk 0:02:58]} 8. e3 {[%clk 0:02:47]}  Ng6 {[%clk 0:02:54]} 9. Be2 {[%clk 0:02:43]}  O-O-O {[%clk 0:02:52]} 10. O-O {[%clk 0:02:42]}  Ngxe5 {[%clk 0:02:52]} 11. Nc3 {[%clk 0:02:36]}  Nxf3+ {[%clk 0:02:51]} 12. gxf3 {[%clk 0:02:34]}  Bh3 {[%clk 0:02:52]} 13. Rd1 {[%clk 0:02:33]}  Bb4 {[%clk 0:02:52]} 14. Bd2 {[%clk 0:02:31]}  Rd6 {[%clk 0:02:52]} 15. Ne4 {[%clk 0:02:27]}  Rg6+ {[%clk 0:02:52]} 16. Ng3 {[%clk 0:02:24]}  h5 {[%clk 0:02:50]} 17. Bd3 {[%clk 0:02:22]}  Rf6 {[%clk 0:02:47]} 18. Bxb4 {[%clk 0:02:17]}  Nxb4 {[%clk 0:02:48]} 19. Be4 {[%clk 0:02:18]}  h4 {[%clk 0:02:47]} 20. Ne2 {[%clk 0:02:16]}  Re6 {[%clk 0:02:46]} 21. Nf4 {[%clk 0:02:13]}  Rxe4 {[%clk 0:02:46]} 22. fxe4 {[%clk 0:02:12]}  Bg4 {[%clk 0:02:47]} 23. Rd2 {[%clk 0:02:09]}  Bf3 {[%clk 0:02:47]} 24. a3 {[%clk 0:02:00]}  Nc6 {[%clk 0:02:47]} 25. b4 {[%clk 0:01:48]}  Re8 {[%clk 0:02:46]} 26. b5 {[%clk 0:01:46]}  Ne5 {[%clk 0:02:46]} 27. Rc1 {[%clk 0:01:43]}  Bxe4 {[%clk 0:02:46]} 28. Kf1 {[%clk 0:01:39]}  Nf3 {[%clk 0:02:47]} 29. Rb2 {[%clk 0:01:32]}  Nxh2+ {[%clk 0:02:47]} 30. Ke2 {[%clk 0:01:28]}  g5 {[%clk 0:02:48]} 31. Nd3 {[%clk 0:01:21]}  Bf3+ {[%clk 0:02:48]} 32. Ke1 {[%clk 0:01:21]}  Ng4 {[%clk 0:02:49]} 33. Rbc2 {[%clk 0:01:18]}  Re7 {[%clk 0:02:49]} 34. Kd2 {[%clk 0:01:08]}  h3 {[%clk 0:02:50]} 35. Ne1 {[%clk 0:01:05]}  Be4 {[%clk 0:02:50]} 36. Rc4 {[%clk 0:01:03]}  h2 {[%clk 0:02:50]} 37. Nc2 {[%clk 0:00:55]}  Nxf2 {[%clk 0:02:50]} 38. Nb4 {[%clk 0:00:41]}  h1=Q {[%clk 0:02:49]} 39. Rxh1 {[%clk 0:00:42]}  Nxh1 {[%clk 0:02:50]} 0-1

[Event "January 9 Early 2024"]
[Site "https://www.chess.com"]
[Date "2024.01.11"]
[Round "3"]
[White "Sychev, Klementy"]
[Black "Lopusiewicz, Piotr"]
[Result "1-0"]
[Board "20"]
[TimeControl "180+1"]
[WhiteFideId "4114060"]
[BlackFideId "1116029"]
[WhiteElo "2813"]
[BlackElo "2478"]
[WhiteTeam "FID"]
[BlackTeam "POL"]
[WhiteClock "0:01:29"]
[BlackClock "0:01:24"]

1. e4 {[%clk 0:02:53]}  e5 {[%clk 0:03:00]} 2. Nc3 {[%clk 0:02:50]}  Nc6 {[%clk 0:03:00]} 3. g3 {[%clk 0:02:50]}  Bc5 {[%clk 0:02:58]} 4. Bg2 {[%clk 0:02:51]}  a5 {[%clk 0:02:59]} 5. d3 {[%clk 0:02:50]}  d6 {[%clk 0:02:57]} 6. Nge2 {[%clk 0:02:50]}  Nge7 {[%clk 0:02:57]} 7. O-O {[%clk 0:02:50]}  Be6 {[%clk 0:02:56]} 8. h3 {[%clk 0:02:50]}  Qd7 {[%clk 0:02:55]} 9. Kh2 {[%clk 0:02:50]}  O-O {[%clk 0:02:49]} 10. f4 {[%clk 0:02:47]}  f6 {[%clk 0:02:49]} 11. f5 {[%clk 0:02:11]}  Bf7 {[%clk 0:02:49]} 12. g4 {[%clk 0:02:11]}  d5 {[%clk 0:02:43]} 13. Ng3 {[%clk 0:02:08]}  h6 {[%clk 0:02:25]} 14. h4 {[%clk 0:02:08]}  a4 {[%clk 0:02:24]} 15. a3 {[%clk 0:02:04]}  Bd4 {[%clk 0:02:18]} 16. g5 {[%clk 0:01:53]}  Bxc3 {[%clk 0:02:08]} 17. bxc3 {[%clk 0:01:52]}  dxe4 {[%clk 0:02:07]} 18. gxf6 {[%clk 0:01:36]}  gxf6 {[%clk 0:02:00]} 19. Bxh6 {[%clk 0:01:35]}  Kh7 {[%clk 0:01:30]} 20. Bxf8 {[%clk 0:01:34]}  Rxf8 {[%clk 0:01:31]} 21. Nxe4 {[%clk 0:01:34]}  Be8 {[%clk 0:01:28]} 22. Qg4 {[%clk 0:01:30]}  Rg8 {[%clk 0:01:24]} 23. Nxf6+ {[%clk 0:01:29]} 1-0

[Event "January 9 Early 2024"]
[Site "https://www.chess.com"]
[Date "2024.01.11"]
[Round "3"]
[White "Cordoba Roa, Angel Gabriel"]
[Black "Mrudul Dehankar"]
[Result "1-0"]
[Board "21"]
[TimeControl "180+1"]
[WhiteFideId "3957624"]
[BlackFideId "25096990"]
[WhiteElo "2641"]
[BlackElo "2435"]
[WhiteTeam "COL"]
[BlackTeam "IND"]
[WhiteClock "0:02:49"]
[BlackClock "0:00:21"]

1. e4 {[%clk 0:03:00]}  c6 {[%clk 0:02:53]} 2. d3 {[%clk 0:03:00]}  d5 {[%clk 0:02:49]} 3. Nd2 {[%clk 0:03:01]}  dxe4 {[%clk 0:02:46]} 4. dxe4 {[%clk 0:03:02]}  e5 {[%clk 0:02:45]} 5. Ngf3 {[%clk 0:03:02]}  Qc7 {[%clk 0:02:34]} 6. a4 {[%clk 0:03:02]}  Nf6 {[%clk 0:02:33]} 7. Bc4 {[%clk 0:03:02]}  Be7 {[%clk 0:02:21]} 8. O-O {[%clk 0:03:00]}  O-O {[%clk 0:02:20]} 9. a5 {[%clk 0:03:01]}  Bg4 {[%clk 0:02:16]} 10. h3 {[%clk 0:03:01]}  Bh5 {[%clk 0:02:17]} 11. Qe1 {[%clk 0:03:02]}  Nbd7 {[%clk 0:02:14]} 12. Qe2 {[%clk 0:02:59]}  b5 {[%clk 0:02:03]} 13. axb6 {[%clk 0:02:59]}  axb6 {[%clk 0:02:02]} 14. Rxa8 {[%clk 0:03:00]}  Rxa8 {[%clk 0:02:01]} 15. c3 {[%clk 0:02:58]}  b5 {[%clk 0:01:59]} 16. Bb3 {[%clk 0:02:59]}  Nc5 {[%clk 0:01:59]} 17. Bc2 {[%clk 0:02:59]}  Ne6 {[%clk 0:01:50]} 18. Re1 {[%clk 0:03:00]}  Nf4 {[%clk 0:01:48]} 19. Qf1 {[%clk 0:03:00]}  Bc5 {[%clk 0:01:44]} 20. g3 {[%clk 0:02:58]}  Ne6 {[%clk 0:01:41]} 21. Kg2 {[%clk 0:02:57]}  Bg6 {[%clk 0:01:18]} 22. Nh4 {[%clk 0:02:53]}  Nh5 {[%clk 0:01:03]} 23. Ndf3 {[%clk 0:02:51]}  Rd8 {[%clk 0:00:46]} 24. Nf5 {[%clk 0:02:50]}  Nf6 {[%clk 0:00:34]} 25. Rd1 {[%clk 0:02:49]}  Rxd1 {[%clk 0:00:26]} 26. Qxd1 {[%clk 0:02:50]}  Qd6 {[%clk 0:00:21]} 27. Nxd6 {[%clk 0:02:49]} 1-0

[Event "January 9 Early 2024"]
[Site "https://www.chess.com"]
[Date "2024.01.11"]
[Round "3"]
[White "Szczepanek, Radoslaw"]
[Black "Mihajlovskij, Sergei"]
[Result "0-1"]
[Board "25"]
[TimeControl "180+1"]
[WhiteFideId "1120395"]
[BlackFideId "13500805"]
[WhiteElo "2377"]
[BlackElo "2208"]
[WhiteTeam "POL"]
[BlackTeam "BLR"]
[WhiteClock "0:00:50"]
[BlackClock "0:01:59"]

1. e4 {[%clk 0:03:00]}  d5 {[%clk 0:02:57]} 2. exd5 {[%clk 0:03:00]}  Qxd5 {[%clk 0:02:58]} 3. Nc3 {[%clk 0:03:00]}  Qe5+ {[%clk 0:02:58]} 4. Be2 {[%clk 0:02:59]}  Bg4 {[%clk 0:02:58]} 5. d4 {[%clk 0:02:58]}  Bxe2 {[%clk 0:02:51]} 6. Ngxe2 {[%clk 0:02:59]}  Qa5 {[%clk 0:02:51]} 7. O-O {[%clk 0:02:58]}  Nf6 {[%clk 0:02:50]} 8. b4 {[%clk 0:02:53]}  Qh5 {[%clk 0:02:49]} 9. Rb1 {[%clk 0:02:47]}  Nbd7 {[%clk 0:02:49]} 10. a4 {[%clk 0:02:38]}  e6 {[%clk 0:02:49]} 11. Bf4 {[%clk 0:02:31]}  Be7 {[%clk 0:02:42]} 12. Nb5 {[%clk 0:02:31]}  O-O {[%clk 0:02:40]} 13. Nxc7 {[%clk 0:02:30]}  Rac8 {[%clk 0:02:40]} 14. Nb5 {[%clk 0:02:30]}  a6 {[%clk 0:02:38]} 15. Nd6 {[%clk 0:02:28]}  Bxd6 {[%clk 0:02:36]} 16. Bxd6 {[%clk 0:02:29]}  Rfd8 {[%clk 0:02:37]} 17. c3 {[%clk 0:02:26]}  Nb6 {[%clk 0:02:37]} 18. Bg3 {[%clk 0:02:24]}  Nbd5 {[%clk 0:02:35]} 19. Qd3 {[%clk 0:02:19]}  Qg6 {[%clk 0:02:31]} 20. Qf3 {[%clk 0:01:59]}  Ne4 {[%clk 0:02:26]} 21. Rbd1 {[%clk 0:01:34]}  Nexc3 {[%clk 0:02:19]} 22. Nxc3 {[%clk 0:01:27]}  Nxc3 {[%clk 0:02:20]} 23. Ra1 {[%clk 0:01:18]}  b5 {[%clk 0:02:17]} 24. axb5 {[%clk 0:01:15]}  axb5 {[%clk 0:02:18]} 25. Ra7 {[%clk 0:01:10]}  Nd5 {[%clk 0:02:11]} 26. Qe2 {[%clk 0:00:53]}  Rc4 {[%clk 0:02:00]} 27. Rb1 {[%clk 0:00:50]}  Qxb1+ {[%clk 0:01:59]} 0-1

[Event "January 9 Early 2024"]
[Site "https://www.chess.com"]
[Date "2024.01.11"]
[Round "3"]
[White "Yurasov, Matfey"]
[Black "Golubovic, Erik"]
[Result "1-0"]
[Board "28"]
[TimeControl "180+1"]
[WhiteFideId "55617603"]
[BlackFideId "14586908"]
[WhiteElo "2545"]
[BlackElo "2239"]
[WhiteTeam "FID"]
[BlackTeam "CRO"]
[WhiteClock "0:02:01"]
[BlackClock "0:00:46"]

1. e4 {[%clk 0:03:00]}  c5 {[%clk 0:02:59]} 2. Nf3 {[%clk 0:03:00]}  d6 {[%clk 0:02:59]} 3. Bb5+ {[%clk 0:03:00]}  Bd7 {[%clk 0:02:59]} 4. Bxd7+ {[%clk 0:02:59]}  Qxd7 {[%clk 0:02:59]} 5. O-O {[%clk 0:02:59]}  Nc6 {[%clk 0:02:59]} 6. d4 {[%clk 0:02:58]}  cxd4 {[%clk 0:02:57]} 7. Nxd4 {[%clk 0:02:59]}  Nf6 {[%clk 0:02:56]} 8. Re1 {[%clk 0:02:58]}  e6 {[%clk 0:02:37]} 9. c4 {[%clk 0:02:57]}  Be7 {[%clk 0:02:37]} 10. Nc3 {[%clk 0:02:57]}  O-O {[%clk 0:02:37]} 11. b3 {[%clk 0:02:56]}  Rfd8 {[%clk 0:02:32]} 12. Bb2 {[%clk 0:02:56]}  Rac8 {[%clk 0:02:30]} 13. Qd2 {[%clk 0:02:53]}  a6 {[%clk 0:02:28]} 14. Rad1 {[%clk 0:02:52]}  Bf8 {[%clk 0:02:19]} 15. Qe2 {[%clk 0:02:50]}  g6 {[%clk 0:02:04]} 16. Nf3 {[%clk 0:02:39]}  Qc7 {[%clk 0:01:44]} 17. Nd5 {[%clk 0:02:31]}  Nxd5 {[%clk 0:01:39]} 18. exd5 {[%clk 0:02:31]}  exd5 {[%clk 0:01:35]} 19. cxd5 {[%clk 0:02:31]}  Ne7 {[%clk 0:01:27]} 20. Qe4 {[%clk 0:02:26]}  Nf5 {[%clk 0:01:17]} 21. g4 {[%clk 0:02:17]}  Bg7 {[%clk 0:01:12]} 22. Bxg7 {[%clk 0:02:11]}  Nxg7 {[%clk 0:01:13]} 23. Qf4 {[%clk 0:02:10]}  Re8 {[%clk 0:01:10]} 24. Ng5 {[%clk 0:02:09]}  Rxe1+ {[%clk 0:01:07]} 25. Rxe1 {[%clk 0:02:09]}  Re8 {[%clk 0:01:07]} 26. Ne4 {[%clk 0:02:08]}  Re5 {[%clk 0:00:50]} 27. Nf6+ {[%clk 0:02:02]}  Kh8 {[%clk 0:00:50]} 28. Rxe5 {[%clk 0:02:01]}  dxe5 {[%clk 0:00:46]} 29. Qh6 {[%clk 0:02:01]} 1-0

[Event "January 9 Early 2024"]
[Site "https://www.chess.com"]
[Date "2024.01.11"]
[Round "3"]
[White "Horak, Martin"]
[Black "Santos Latasa, Jaime"]
[Result "0-1"]
[Board "31"]
[TimeControl "180+1"]
[WhiteFideId "367095"]
[BlackFideId "2293307"]
[WhiteElo "2522"]
[BlackElo "2913"]
[WhiteTeam "CZE"]
[BlackTeam "ESP"]
[WhiteClock "0:00:12"]
[BlackClock "0:02:14"]

1. e4 {[%clk 0:03:00]}  c5 {[%clk 0:02:59]} 2. Nf3 {[%clk 0:03:01]}  Nc6 {[%clk 0:02:59]} 3. Bb5 {[%clk 0:02:58]}  e6 {[%clk 0:02:59]} 4. O-O {[%clk 0:02:58]}  Nge7 {[%clk 0:02:57]} 5. Re1 {[%clk 0:02:58]}  a6 {[%clk 0:02:56]} 6. Bf1 {[%clk 0:02:59]}  d5 {[%clk 0:02:56]} 7. exd5 {[%clk 0:03:00]}  Nxd5 {[%clk 0:02:56]} 8. d4 {[%clk 0:03:00]}  Nf6 {[%clk 0:02:57]} 9. Be3 {[%clk 0:02:59]}  cxd4 {[%clk 0:02:57]} 10. Nxd4 {[%clk 0:02:59]}  Bd7 {[%clk 0:02:58]} 11. c4 {[%clk 0:02:57]}  Qc7 {[%clk 0:02:58]} 12. Nc3 {[%clk 0:02:53]}  Bd6 {[%clk 0:02:55]} 13. h3 {[%clk 0:02:51]}  O-O {[%clk 0:02:54]} 14. Rc1 {[%clk 0:02:48]}  Rfd8 {[%clk 0:02:48]} 15. b3 {[%clk 0:02:24]}  Be8 {[%clk 0:02:41]} 16. Nce2 {[%clk 0:01:39]}  Ba3 {[%clk 0:02:33]} 17. Qc2 {[%clk 0:01:24]}  Bxc1 {[%clk 0:02:31]} 18. Rxc1 {[%clk 0:01:24]}  Nxd4 {[%clk 0:02:30]} 19. Bxd4 {[%clk 0:01:23]}  e5 {[%clk 0:02:30]} 20. Bb2 {[%clk 0:01:22]}  Bc6 {[%clk 0:02:26]} 21. Ng3 {[%clk 0:01:20]}  Nd7 {[%clk 0:02:22]} 22. Re1 {[%clk 0:01:15]}  f6 {[%clk 0:02:22]} 23. Qf5 {[%clk 0:01:10]}  Nf8 {[%clk 0:02:20]} 24. Nh5 {[%clk 0:00:36]}  Qf7 {[%clk 0:02:17]} 25. f4 {[%clk 0:00:16]}  Bd7 {[%clk 0:02:15]} 26. Qg4 {[%clk 0:00:12]}  Bxg4 {[%clk 0:02:14]} 0-1

[Event "January 9 Early 2024"]
[Site "https://www.chess.com"]
[Date "2024.01.11"]
[Round "3"]
[White "Khamrakulov, Djurabek"]
[Black "Vakhidov, Shahzod"]
[Result "1-0"]
[Board "34"]
[TimeControl "180+1"]
[WhiteFideId "14201143"]
[BlackFideId "14205270"]
[WhiteElo "2835"]
[BlackElo "2514"]
[WhiteTeam "UZB"]
[BlackTeam "UZB"]
[WhiteClock "0:02:00"]
[BlackClock "0:00:33"]

1. e4 {[%clk 0:03:00]}  c5 {[%clk 0:02:59]} 2. Nf3 {[%clk 0:02:59]}  g6 {[%clk 0:03:00]} 3. c3 {[%clk 0:02:59]}  d5 {[%clk 0:03:00]} 4. exd5 {[%clk 0:02:59]}  Qxd5 {[%clk 0:03:01]} 5. d4 {[%clk 0:02:59]}  Bg7 {[%clk 0:03:01]} 6. Nbd2 {[%clk 0:02:59]}  cxd4 {[%clk 0:03:01]} 7. Bc4 {[%clk 0:02:59]}  Qd8 {[%clk 0:03:01]} 8. Nxd4 {[%clk 0:02:56]}  Nf6 {[%clk 0:03:01]} 9. O-O {[%clk 0:02:55]}  O-O {[%clk 0:03:02]} 10. Qe2 {[%clk 0:02:55]}  Bg4 {[%clk 0:02:45]} 11. N2f3 {[%clk 0:02:54]}  Qc7 {[%clk 0:02:43]} 12. h3 {[%clk 0:02:51]}  Bxf3 {[%clk 0:02:43]} 13. Nxf3 {[%clk 0:02:51]}  Nc6 {[%clk 0:02:41]} 14. Re1 {[%clk 0:02:50]}  Rac8 {[%clk 0:02:26]} 15. Bb3 {[%clk 0:02:47]}  Nd7 {[%clk 0:01:49]} 16. h4 {[%clk 0:02:39]}  Nc5 {[%clk 0:01:46]} 17. Bc2 {[%clk 0:02:36]}  e5 {[%clk 0:01:43]} 18. h5 {[%clk 0:02:34]}  Rfe8 {[%clk 0:01:33]} 19. Ng5 {[%clk 0:02:32]}  e4 {[%clk 0:01:28]} 20. Be3 {[%clk 0:02:29]}  Qe5 {[%clk 0:01:26]} 21. hxg6 {[%clk 0:02:21]}  hxg6 {[%clk 0:01:25]} 22. Qc4 {[%clk 0:02:21]}  Ne6 {[%clk 0:01:20]} 23. Nxe4 {[%clk 0:02:12]}  Ncd4 {[%clk 0:01:11]} 24. Bxd4 {[%clk 0:02:07]}  Nxd4 {[%clk 0:00:38]} 25. Qxd4 {[%clk 0:02:07]}  Qxd4 {[%clk 0:00:31]} 26. cxd4 {[%clk 0:02:06]}  Rxc2 {[%clk 0:00:31]} 27. Nf6+ {[%clk 0:02:06]}  Bxf6 {[%clk 0:00:32]} 28. Rxe8+ {[%clk 0:02:06]}  Kg7 {[%clk 0:00:33]} 29. Rd1 {[%clk 0:02:00]} 1-0

[Event "January 9 Early 2024"]
[Site "https://www.chess.com"]
[Date "2024.01.11"]
[Round "3"]
[White "Garriga Cazorla, Pere"]
[Black "Krishnan, Ritvik"]
[Result "1-0"]
[Board "35"]
[TimeControl "180+1"]
[WhiteFideId "32011601"]
[BlackFideId "45055297"]
[WhiteElo "2703"]
[BlackElo "2489"]
[WhiteTeam "ESP"]
[BlackTeam "IND"]
[WhiteClock "0:01:21"]
[BlackClock "0:01:06"]

1. d4 {[%clk 0:03:00]}  Nf6 {[%clk 0:02:57]} 2. c4 {[%clk 0:02:54]}  e6 {[%clk 0:02:56]} 3. Nf3 {[%clk 0:02:53]}  d5 {[%clk 0:02:55]} 4. Nc3 {[%clk 0:02:53]}  Nbd7 {[%clk 0:02:51]} 5. Bf4 {[%clk 0:02:52]}  Bb4 {[%clk 0:02:50]} 6. e3 {[%clk 0:02:51]}  O-O {[%clk 0:02:50]} 7. Rc1 {[%clk 0:02:44]}  c5 {[%clk 0:02:49]} 8. cxd5 {[%clk 0:02:40]}  Nxd5 {[%clk 0:02:47]} 9. Bg3 {[%clk 0:02:40]}  Qa5 {[%clk 0:02:42]} 10. Qd2 {[%clk 0:02:40]}  N7f6 {[%clk 0:02:34]} 11. Bd3 {[%clk 0:02:39]}  cxd4 {[%clk 0:02:01]} 12. exd4 {[%clk 0:02:39]}  b6 {[%clk 0:01:59]} 13. a3 {[%clk 0:02:29]}  Be7 {[%clk 0:01:39]} 14. O-O {[%clk 0:02:28]}  Ba6 {[%clk 0:01:39]} 15. Nxd5 {[%clk 0:02:24]}  Qxd5 {[%clk 0:01:13]} 16. Bxa6 {[%clk 0:02:22]}  Ne4 {[%clk 0:01:10]} 17. Qe3 {[%clk 0:02:13]}  f5 {[%clk 0:01:08]} 18. Bc4 {[%clk 0:02:10]}  Qd7 {[%clk 0:01:08]} 19. Ne5 {[%clk 0:02:07]}  Qc8 {[%clk 0:01:08]} 20. Ba2 {[%clk 0:01:54]}  Qb7 {[%clk 0:01:05]} 21. Bxe6+ {[%clk 0:01:54]}  Kh8 {[%clk 0:01:06]} 22. Rc7 {[%clk 0:01:21]} 1-0

[Event "January 9 Early 2024"]
[Site "https://www.chess.com"]
[Date "2024.01.11"]
[Round "3"]
[White "Firouzja, Alireza"]
[Black "Zou, Chen"]
[Result "1-0"]
[Board "36"]
[TimeControl "180+1"]
[WhiteFideId "12573981"]
[BlackFideId "8610959"]
[WhiteElo "3135"]
[BlackElo "2800"]
[WhiteTeam "FRA"]
[BlackTeam "CHN"]
[WhiteClock "0:02:01"]
[BlackClock "0:00:29"]

1. e4 {[%clk 0:02:58]}  e5 {[%clk 0:02:56]} 2. Nf3 {[%clk 0:02:58]}  Nc6 {[%clk 0:02:55]} 3. Bb5 {[%clk 0:02:58]}  Nf6 {[%clk 0:02:55]} 4. d3 {[%clk 0:02:58]}  Bc5 {[%clk 0:02:55]} 5. Bxc6 {[%clk 0:02:58]}  dxc6 {[%clk 0:02:56]} 6. h3 {[%clk 0:02:58]}  Nd7 {[%clk 0:02:54]} 7. Nc3 {[%clk 0:02:58]}  O-O {[%clk 0:02:50]} 8. Be3 {[%clk 0:02:56]}  Bd6 {[%clk 0:02:40]} 9. g4 {[%clk 0:02:53]}  c5 {[%clk 0:02:33]} 10. Ne2 {[%clk 0:02:51]}  a5 {[%clk 0:02:33]} 11. a4 {[%clk 0:02:46]}  Ra6 {[%clk 0:02:33]} 12. b3 {[%clk 0:02:45]}  Re8 {[%clk 0:02:33]} 13. Ng3 {[%clk 0:02:45]}  Nf8 {[%clk 0:02:13]} 14. Nf5 {[%clk 0:02:45]}  Ng6 {[%clk 0:01:59]} 15. h4 {[%clk 0:02:44]}  Bf8 {[%clk 0:01:59]} 16. h5 {[%clk 0:02:43]}  Nf4 {[%clk 0:01:59]} 17. Qd2 {[%clk 0:02:34]}  Ng2+ {[%clk 0:01:58]} 18. Ke2 {[%clk 0:02:28]}  Nxe3 {[%clk 0:01:59]} 19. Qxe3 {[%clk 0:02:27]}  Rc6 {[%clk 0:01:52]} 20. Nd2 {[%clk 0:02:27]}  b6 {[%clk 0:01:51]} 21. Rag1 {[%clk 0:02:23]}  Rce6 {[%clk 0:01:41]} 22. g5 {[%clk 0:02:22]}  Qd7 {[%clk 0:01:29]} 23. Qf3 {[%clk 0:02:21]}  Rd8 {[%clk 0:01:13]} 24. Nc4 {[%clk 0:02:21]}  Rde8 {[%clk 0:01:13]} 25. Nce3 {[%clk 0:02:21]}  c6 {[%clk 0:01:01]} 26. Ng4 {[%clk 0:02:20]}  Kh8 {[%clk 0:00:58]} 27. Nf6 {[%clk 0:02:03]}  gxf6 {[%clk 0:00:52]} 28. gxf6 {[%clk 0:02:04]}  Rxf6 {[%clk 0:00:53]} 29. Qg3 {[%clk 0:02:03]}  Bh6 {[%clk 0:00:33]} 30. Nxh6 {[%clk 0:02:02]}  Rxh6 {[%clk 0:00:29]} 31. Qg7# {[%clk 0:02:01]} 1-0

[Event "January 9 Early 2024"]
[Site "https://www.chess.com"]
[Date "2024.01.11"]
[Round "3"]
[White "Onufrienko, Vladislav"]
[Black "Krzywda, Andrzej"]
[Result "1-0"]
[Board "37"]
[TimeControl "180+1"]
[WhiteFideId "13804332"]
[BlackFideId "1114565"]
[WhiteElo "2610"]
[BlackElo "2393"]
[WhiteTeam "KGZ"]
[BlackTeam "POL"]
[WhiteClock "0:01:44"]
[BlackClock "0:01:12"]

1. e4 {[%clk 0:03:00]}  e5 {[%clk 0:02:59]} 2. Nf3 {[%clk 0:03:01]}  Nf6 {[%clk 0:02:59]} 3. Nc3 {[%clk 0:03:01]}  Bb4 {[%clk 0:02:59]} 4. Nd5 {[%clk 0:03:01]}  Nxd5 {[%clk 0:02:58]} 5. exd5 {[%clk 0:03:02]}  e4 {[%clk 0:02:52]} 6. Nd4 {[%clk 0:02:55]}  O-O {[%clk 0:02:51]} 7. Bc4 {[%clk 0:02:54]}  d6 {[%clk 0:02:15]} 8. O-O {[%clk 0:02:54]}  Nd7 {[%clk 0:02:14]} 9. d3 {[%clk 0:02:54]}  exd3 {[%clk 0:02:10]} 10. Bxd3 {[%clk 0:02:49]}  Ne5 {[%clk 0:02:10]} 11. Be2 {[%clk 0:02:48]}  Bc5 {[%clk 0:02:06]} 12. f4 {[%clk 0:02:41]}  Ng4 {[%clk 0:01:57]} 13. Bxg4 {[%clk 0:02:39]}  Bxg4 {[%clk 0:01:57]} 14. Qxg4 {[%clk 0:02:39]}  Bxd4+ {[%clk 0:01:57]} 15. Kh1 {[%clk 0:02:40]}  Qf6 {[%clk 0:01:57]} 16. c3 {[%clk 0:02:40]}  Bc5 {[%clk 0:01:58]} 17. f5 {[%clk 0:02:38]}  h6 {[%clk 0:01:48]} 18. b4 {[%clk 0:02:30]}  Bb6 {[%clk 0:01:43]} 19. Rb1 {[%clk 0:02:25]}  a5 {[%clk 0:01:42]} 20. c4 {[%clk 0:02:18]}  axb4 {[%clk 0:01:41]} 21. Bb2 {[%clk 0:02:19]}  Qg5 {[%clk 0:01:39]} 22. Qh3 {[%clk 0:02:19]}  f6 {[%clk 0:01:36]} 23. Bc1 {[%clk 0:02:08]}  Ra3 {[%clk 0:01:12]} 24. Rb3 {[%clk 0:01:44]} 1-0

[Event "January 9 Early 2024"]
[Site "https://www.chess.com"]
[Date "2024.01.11"]
[Round "3"]
[White "Berezin, Viktor"]
[Black "Piesik, Piotr"]
[Result "1-0"]
[Board "38"]
[TimeControl "180+1"]
[WhiteFideId "14107872"]
[BlackFideId "1136194"]
[WhiteElo "2500"]
[BlackElo "2669"]
[WhiteTeam "UKR"]
[BlackTeam "CZE"]
[WhiteClock "0:01:01"]
[BlackClock "0:01:23"]

1. d4 {[%clk 0:02:55]}  c5 {[%clk 0:02:57]} 2. d5 {[%clk 0:02:52]}  e5 {[%clk 0:02:57]} 3. Nc3 {[%clk 0:02:52]}  d6 {[%clk 0:02:58]} 4. e4 {[%clk 0:02:51]}  Be7 {[%clk 0:02:58]} 5. Bb5+ {[%clk 0:02:47]}  Nd7 {[%clk 0:02:58]} 6. a4 {[%clk 0:02:48]}  Bg5 {[%clk 0:02:59]} 7. Nf3 {[%clk 0:02:41]}  Bxc1 {[%clk 0:02:57]} 8. Qxc1 {[%clk 0:02:42]}  Ne7 {[%clk 0:02:58]} 9. Nd2 {[%clk 0:02:42]}  O-O {[%clk 0:02:57]} 10. Bd3 {[%clk 0:02:35]}  f5 {[%clk 0:02:54]} 11. Nc4 {[%clk 0:02:32]}  Nf6 {[%clk 0:02:54]} 12. exf5 {[%clk 0:02:29]}  Bxf5 {[%clk 0:02:48]} 13. Bxf5 {[%clk 0:02:24]}  Nxf5 {[%clk 0:02:49]} 14. O-O {[%clk 0:02:24]}  a6 {[%clk 0:02:40]} 15. a5 {[%clk 0:02:23]}  Qe7 {[%clk 0:02:37]} 16. Re1 {[%clk 0:02:18]}  Rad8 {[%clk 0:02:31]} 17. Qd2 {[%clk 0:02:16]}  Qf7 {[%clk 0:02:28]} 18. Ne4 {[%clk 0:02:15]}  Qg6 {[%clk 0:02:21]} 19. Ng5 {[%clk 0:02:08]}  Nd4 {[%clk 0:02:15]} 20. Kh1 {[%clk 0:02:00]}  Nxd5 {[%clk 0:02:12]} 21. c3 {[%clk 0:01:54]}  Nf4 {[%clk 0:02:12]} 22. cxd4 {[%clk 0:01:45]}  Qxg5 {[%clk 0:02:10]} 23. g3 {[%clk 0:01:44]}  Qh5 {[%clk 0:01:53]} 24. gxf4 {[%clk 0:01:34]}  Qf3+ {[%clk 0:01:52]} 25. Kg1 {[%clk 0:01:34]}  Rxf4 {[%clk 0:01:52]} 26. Ra3 {[%clk 0:01:26]}  Rg4+ {[%clk 0:01:46]} 27. Kf1 {[%clk 0:01:26]}  Qh1+ {[%clk 0:01:36]} 28. Ke2 {[%clk 0:01:25]}  Qxh2 {[%clk 0:01:35]} 29. dxc5 {[%clk 0:01:06]}  Rxc4 {[%clk 0:01:33]} 30. Qd5+ {[%clk 0:01:06]}  Kh8 {[%clk 0:01:33]} 31. Qxc4 {[%clk 0:01:06]}  d5 {[%clk 0:01:31]} 32. Qg4 {[%clk 0:01:03]}  Rf8 {[%clk 0:01:28]} 33. Rf3 {[%clk 0:01:03]}  Rg8 {[%clk 0:01:23]} 34. Rh3 {[%clk 0:01:01]} 1-0